fUST/lending_fUST_20251002
["ID","MTS","AMOUNT","RATE_DAILY","PERIOD"]
[388808148,1759377039944,-151.0,0.00020961,2]
[388808149,1759377039953,-151.0,0.00020961,2]
[388808150,1759377039962,-218.90518,0.00020961,2]
[388808151,1759377039971,-151.0,0.00020961,2]
[388808152,1759377039981,-151.0,0.00020961,2]
[388808153,1759377039990,-403.430326,0.00020961,2]
[388808154,1759377040000,-151.0,0.00020961,2]
[388808155,1759377040012,-151.0,0.00020961,2]
[388808156,1759377040022,-403.430326,0.00020961,2]
[388808157,1759377040032,-403.430326,0.00020961,2]
[388808158,1759377040042,-403.430326,0.00020961,2]
[388808159,1759377040051,-151.0,0.00020961,2]
[388808160,1759377040060,-509.83073558,0.00020973,2]
[388808161,1759377040071,-500.0,0.00020973,2]
[388808162,1759377040079,-303.14886399,0.00020973,2]
[388808163,1759377040089,-500.0,0.00020973,2]
[388808164,1759377040098,-502.32847634,0.00020973,2]
[388808165,1759377040107,-500.0,0.00020973,2]
[388808166,1759377040115,-500.0,0.00020973,2]
[388808167,1759377040124,-500.0,0.00020973,2]
[388808168,1759377040133,-500.0,0.00020973,2]
[388808171,1759377040143,-501.54152828,0.00020973,2]
[388808173,1759377040152,-500.0,0.00020973,2]
[388808174,1759377040161,-500.0,0.00020973,2]
[388808175,1759377040170,-500.0,0.00020973,2]
[388808176,1759377040179,-501.86763085,0.00020973,2]
[388808177,1759377040188,-500.0,0.00020973,2]
[388808178,1759377040197,-500.0,0.00020973,2]
[388808179,1759377040205,-500.0,0.00020973,2]
[388808180,1759377040214,-500.77721047,0.00020973,2]
[388808181,1759377040223,-500.0,0.00020973,2]
[388808182,1759377040232,-500.0,0.00020973,2]
[388808183,1759377040241,-500.0,0.00020973,2]
[388808184,1759377040250,-500.0,0.00020973,2]
[388808185,1759377040259,-500.0,0.00020973,2]
[388808186,1759377040268,-501.95754591,0.00020973,2]
[388808187,1759377040277,-500.0,0.00020973,2]
[388808188,1759377040288,-500.0,0.00020973,2]
[388808189,1759377040298,-500.0,0.00020973,2]
[388808190,1759377040308,-500.0,0.00020973,2]
[388808191,1759377040319,-500.0,0.00020973,2]
[388808192,1759377040328,-500.0,0.00020973,2]
[388808193,1759377040337,-500.0,0.00020973,2]
[388808194,1759377040346,-503.56110543,0.00020973,2]
[388808195,1759377040355,-511.90518432,0.00020973,2]
[388808196,1759377040363,-500.0,0.00020973,2]
[388808197,1759377040372,-500.0,0.00020973,2]
[388808198,1759377040382,-151.0,0.00020973,2]
[388808199,1759377040392,-151.0,0.00020973,2]
[388808200,1759377040401,-151.0,0.00020973,2]
[388808201,1759377040411,-224.470643,0.00020973,2]
[388808202,1759377040420,-151.0,0.00020973,2]
[388808203,1759377040430,-151.0,0.00020973,2]
[388808204,1759377040439,-151.0,0.00020973,2]
[388808205,1759377040448,-151.0,0.00020973,2]
[388808206,1759377040458,-151.0,0.00020973,2]
[388808207,1759377040466,-151.0,0.00020973,2]
[388808208,1759377040477,-151.0,0.00020973,2]
[388808209,1759377040486,-184.264457,0.00020973,2]
[388808210,1759377040495,-153.589604,0.00020973,2]
[388808211,1759377040503,-151.0,0.00020973,2]
[388808212,1759377040512,-155.354289,0.00020973,2]
[388808213,1759377040521,-153.455381,0.00020973,2]
[388808214,1759377040530,-151.0,0.00020973,2]
[388808215,1759377040539,-156.176195,0.00020973,2]
[388808216,1759377040548,-151.0,0.00020973,2]
[388808217,1759377040557,-241.6,0.00020973,2]
[388808218,1759377040566,-151.0,0.00020973,2]
[388808219,1759377040575,-151.0,0.00020973,2]
[388808220,1759377040584,-151.0,0.00020973,2]
[388808221,1759377040592,-151.0,0.00020973,2]
[388808222,1759377040601,-412.068089,0.00020973,2]
[388808223,1759377040610,-412.068089,0.00020973,2]
[388808224,1759377040619,-412.068089,0.00020973,2]
[388808225,1759377040628,-412.068089,0.00020973,2]
[388808226,1759377040637,-412.068089,0.00020973,2]
[388808227,1759377040647,-412.068089,0.00020973,2]
[388808228,1759377040656,-412.068089,0.00020973,2]
[388808229,1759377040665,-412.068089,0.00020973,2]
[388808230,1759377040674,-208.767533,0.00020973,2]
[388808231,1759377040683,-208.767533,0.00020973,2]
[388808232,1759377040692,-208.767533,0.00020973,2]
[388808233,1759377040701,-208.767533,0.00020973,2]
[388808234,1759377040710,-208.767533,0.00020973,2]
[388808235,1759377040719,-208.767533,0.00020973,2]
[388808236,1759377040729,-208.767533,0.00020973,2]
[388808237,1759377040738,-208.767533,0.00020973,2]
[388808238,1759377040748,-151.0,0.00020973,2]
[388808239,1759377040757,-151.0,0.00020973,2]
[388808240,1759377040766,-151.0,0.00020973,2]
[388808241,1759377040775,-151.0,0.00020973,2]
[388808242,1759377040784,-278.791512,0.00020973,2]
[388808243,1759377040793,-151.0,0.00020973,2]
[388808244,1759377040802,-153.604013,0.00020973,2]
[388808245,1759377040811,-151.0,0.00020973,2]
[388808246,1759377040820,-154.533556,0.00020973,2]
[388808247,1759377040829,-151.0,0.00020973,2]
[388808248,1759377040838,-210.511878,0.00020973,2]
[388808249,1759377040846,-157.551322,0.00020973,2]
[388808250,1759377040855,-151.0,0.00020973,2]
[388808251,1759377040864,-151.0,0.00020973,2]
[388808252,1759377040873,-334.520223,0.00020973,2]
[388808253,1759377040883,-334.520223,0.00020973,2]
[388808254,1759377040892,-334.520223,0.00020973,2]
[388808255,1759377040901,-334.520223,0.00020973,2]
[388808256,1759377040910,-334.520223,0.00020973,2]
[388808257,1759377040919,-334.520223,0.00020973,2]
[388808258,1759377040928,-334.520223,0.00020973,2]
[388808259,1759377040941,-334.520223,0.00020973,2]
[388808260,1759377040950,-151.0,0.00020973,2]
[388808261,1759377040959,-177.947643,0.00020973,2]
[388808262,1759377040969,-151.0,0.00020973,2]
[388808263,1759377040978,-153.681436,0.00020973,2]
[388808264,1759377040987,-151.0,0.00020973,2]
[388808265,1759377040995,-151.0,0.00020973,2]
[388808266,1759377041004,-151.0,0.00020973,2]
[388808267,1759377041013,-151.0,0.00020973,2]
[388808268,1759377041022,-151.0,0.00020973,2]
[388808269,1759377041031,-151.0,0.00020973,2]
[388808270,1759377041040,-151.0,0.00020973,2]
[388808271,1759377041049,-151.0,0.00020973,2]
[388808272,1759377041058,-152.68921,0.00020973,2]
[388808273,1759377041066,-152.68921,0.00020973,2]
[388808274,1759377041075,-152.68921,0.00020973,2]
[388808275,1759377041085,-152.68921,0.00020973,2]
[388808276,1759377041095,-152.68921,0.00020973,2]
[388808277,1759377041106,-152.68921,0.00020973,2]
[388808278,1759377041116,-152.68921,0.00020973,2]
[388808279,1759377041126,-152.68921,0.00020973,2]
[388808280,1759377041135,-151.0,0.00020973,2]
[388808281,1759377041144,-151.0,0.00020973,2]
[388808282,1759377041155,-236.707441,0.00020973,2]
[388808283,1759377041164,-152.075036,0.00020973,2]
[388808284,1759377041173,-743.73585,0.00020973,2]
[388808285,1759377041182,-743.73585,0.00020973,2]
[388808286,1759377041192,-743.73585,0.00020973,2]
[388808287,1759377041201,-743.73585,0.00020973,2]
[388808288,1759377041210,-743.73585,0.00020973,2]
[388808289,1759377041220,-743.73585,0.00020973,2]
[388808290,1759377041229,-743.73585,0.00020973,2]
[388808291,1759377041239,-743.73585,0.00020973,2]
[388808292,1759377041248,-151.0,0.00020973,2]
[388808293,1759377041258,-151.0,0.00020973,2]
[388808294,1759377041268,-151.0,0.00020973,2]
[388808295,1759377041277,-151.0,0.00020973,2]
[388808296,1759377041286,-151.0,0.00020973,2]
[388808297,1759377041295,-151.0,0.00020973,2]
[388808298,1759377041304,-151.0,0.00020973,2]
[388808299,1759377041313,-151.0,0.00020973,2]
[388808300,1759377041322,-151.0,0.00020973,2]
[388808301,1759377041331,-151.0,0.00020973,2]
[388808302,1759377041340,-151.0,0.00020973,2]
[388808303,1759377041350,-271.022844,0.00020973,2]
[388808304,1759377041359,-169.645521,0.00020973,2]
[388808305,1759377041368,-151.0,0.00020973,2]
[388808306,1759377041378,-151.0,0.00020973,2]
[388808307,1759377041388,-151.0,0.00020973,2]
[388808308,1759377041397,-263.44777,0.00020973,2]
[388808309,1759377041407,-151.0,0.00020973,2]
[388808310,1759377041416,-151.0,0.00020973,2]
[388808311,1759377041425,-151.0,0.00020973,2]
[388808312,1759377041435,-151.0,0.00020973,2]
[388808313,1759377041445,-151.0,0.00020973,2]
[388808314,1759377041454,-151.0,0.00020973,2]
[388808315,1759377041463,-162.991232,0.00020973,2]
[388808316,1759377041472,-7887.266414,0.00020973,2]
[388808317,1759377041483,-7887.266414,0.00020973,2]
[388808318,1759377041492,-7887.266414,0.00020973,2]
[388808319,1759377041501,-7887.266414,0.00020973,2]
[388808320,1759377041511,-7887.266414,0.00020973,2]
[388808321,1759377041520,-151.0,0.00020973,2]
[388808322,1759377041530,-7887.266414,0.00020973,2]
[388808323,1759377041539,-151.0,0.00020973,2]
[388808324,1759377041548,-248.106949,0.00020973,2]
[388808325,1759377041558,-7887.266414,0.00020973,2]
[388808326,1759377041567,-7887.266414,0.00020973,2]
[388808327,1759377041576,-7887.266414,0.00020973,2]
[388808328,1759377041586,-7887.266414,0.00020973,2]
[388808329,1759377041595,-7887.266414,0.00020973,2]
[388808330,1759377041605,-7887.266414,0.00020973,2]
[388808331,1759377041614,-151.0,0.00020973,2]
[388808333,1759377041623,-207.073478,0.00020973,2]
[388808334,1759377041632,-151.0,0.00020973,2]
[388808335,1759377041641,-151.0,0.00020973,2]
[388808336,1759377041650,-151.0,0.00020973,2]
[388808337,1759377041659,-151.0,0.00020973,2]
[388808338,1759377041667,-151.0,0.00020973,2]
[388808339,1759377041676,-151.0,0.00020973,2]
[388808340,1759377041685,-151.0,0.00020973,2]
[388808341,1759377041696,-221.810496,0.00020973,2]
[388808342,1759377041705,-151.0,0.00020973,2]
[388808343,1759377041714,-151.0,0.00020973,2]
[388808344,1759377041723,-151.0,0.00020973,2]
[388808345,1759377041734,-240.851085,0.00020973,2]
[388808346,1759377041743,-151.0,0.00020973,2]
[388808347,1759377041752,-151.0,0.00020973,2]
[388808348,1759377041761,-151.0,0.00020973,2]
[388808349,1759377041770,-403.430326,0.00020973,2]
[388808350,1759377041780,-403.430326,0.00020973,2]
[388808351,1759377041789,-403.430326,0.00020973,2]
[388808352,1759377041798,-403.430326,0.00020973,2]
[388808353,1759377041807,-403.430326,0.00020973,2]
[388808354,1759377041816,-403.430326,0.00020973,2]
[388808355,1759377041826,-403.430326,0.00020973,2]
[388808356,1759377041835,-403.430326,0.00020973,2]
[388808357,1759377041843,-403.430326,0.00020973,2]
[388808358,1759377041852,-403.430326,0.00020973,2]
[388808359,1759377041862,-403.430326,0.00020973,2]
[388808360,1759377041871,-403.430326,0.00020973,2]
[388808361,1759377041880,-600.0,0.00021194,20]
[388808362,1759377041889,-152.213345,0.00021194,2]
[388808363,1759377041898,-151.0,0.00021198,2]
[388808364,1759377041907,-151.0,0.00021198,2]
[388808365,1759377041916,-151.73323949,0.00021198,2]
[388808366,1759377041925,-219.93735501,0.00021198,2]
[388808367,1759377041939,-159.26058098,0.00021198,2]
[388808368,1759377041949,-151.0,0.00021198,2]
[388808369,1759377041958,-151.0,0.00021198,2]
[388808370,1759377041967,-151.0,0.00021198,2]
[388808371,1759377041977,-151.0,0.00021198,2]
[388808372,1759377041986,-151.0,0.00021198,2]
[388808373,1759377041995,-151.0,0.00021198,2]
[388808374,1759377042005,-500.0,0.00021198,2]
[388808375,1759377042014,-151.0,0.00021198,2]
[388808376,1759377042023,-176.59419669,0.00021198,2]
[388808377,1759377042033,-151.0,0.00021198,2]
[388808378,1759377042042,-500.0,0.00021198,2]
[388808379,1759377042052,-500.0,0.00021198,2]
[388808380,1759377042061,-151.0,0.00021198,2]
[388808381,1759377042070,-151.0,0.00021198,2]
[388808382,1759377042079,-258.502505,0.00021198,2]
[388808383,1759377042088,-151.0,0.00021198,2]
[388808384,1759377042097,-151.0,0.00021198,2]
[388808385,1759377042106,-151.0,0.00021198,2]
[388808386,1759377042116,-151.0,0.00021198,2]
[388808387,1759377042125,-500.0,0.00021198,2]
[388808388,1759377042134,-267.0,0.00021365,2]
[388808389,1759377042143,-151.0,0.00021421,2]
[388808390,1759377042153,-151.0,0.00021421,2]
[388808391,1759377042163,-154.075516,0.00021421,2]
[388808392,1759377042173,-154.734652,0.00021421,2]
[388808393,1759377042182,-152.68921,0.00021421,2]
[388808394,1759377042191,-152.68921,0.00021421,2]
[388808395,1759377042200,-152.68921,0.00021421,2]
[388808396,1759377042209,-152.68921,0.00021421,2]
[388808397,1759377042218,-743.73585,0.00021421,2]
[388808398,1759377042227,-743.73585,0.00021421,2]
[388808399,1759377042236,-743.73585,0.00021421,2]
[388808400,1759377042246,-743.73585,0.00021421,2]
[388808401,1759377042255,-199.33555548,0.00021472,2]
[388808402,1759377042264,-151.0,0.00021472,2]
[388808403,1759377042275,-199.88178958,0.00021472,2]
[388808404,1759377042285,-272.53845342,0.00021472,2]
[388808405,1759377042295,-200.92495861,0.00021472,2]
[388808406,1759377042306,-199.66740267,0.00021472,2]
[388808407,1759377042316,-199.15502948,0.00021472,2]
[388808408,1759377042326,-201.25091563,0.00021472,2]
[388808409,1759377042335,-500.0,0.00021472,2]
[388808410,1759377042344,-151.0,0.00021472,2]
[388808411,1759377042353,-151.96927052,0.00021472,2]
[388808412,1759377042362,-489.85597484,0.00021472,2]
[388808413,1759377042371,-500.0,0.00021472,2]
[388808414,1759377042480,-151.0,0.00021472,2]
[388808415,1759377042493,-334.520223,0.00021472,2]
[388808416,1759377042502,-334.520223,0.00021472,2]
[388808417,1759377042511,-334.520223,0.00021472,2]
[388808418,1759377042520,-334.520223,0.00021472,2]
[388808419,1759377042530,-151.0,0.00021472,2]
[388808420,1759377042539,-153.058172,0.00021472,2]
[388808421,1759377042548,-241.572225,0.00021472,2]
[388808422,1759377042557,-151.0,0.00021472,2]
[388808423,1759377042566,-151.0,0.00021472,2]
[388808424,1759377042575,-151.0,0.00021472,2]
[388808425,1759377042584,-151.0,0.00021472,2]
[388808426,1759377042593,-300.016849,0.00021472,2]
[388808427,1759377042603,-7887.266414,0.00021472,2]
[388808428,1759377042612,-7887.266414,0.00021472,2]
[388808429,1759377042621,-7887.266414,0.00021472,2]
[388808430,1759377042630,-7887.266419,0.00021472,2]
[388808431,1759377042639,-151.0,0.00021472,2]
[388808432,1759377042649,-151.0,0.00021472,2]
[388808433,1759377042658,-151.0,0.00021472,2]
[388808434,1759377042667,-151.0,0.00021472,2]
[388808435,1759377042676,-403.430326,0.00021472,2]
[388808436,1759377042686,-403.430326,0.00021472,2]
[388808437,1759377042695,-403.430326,0.00021472,2]
[388808438,1759377042704,-403.43032193,0.00021472,2]
[388808439,1759377042713,-500.0,0.00021472,2]
[388808440,1759377042722,-409.29684884,0.00021521,2]
[388808441,1759377042732,-1008.27899005,0.00021521,2]
[388808442,1759377042741,-502.17481155,0.00021521,2]
[388808443,1759377042749,-1001.85115808,0.00021521,2]
[388808444,1759377042758,-1000.0,0.00021521,2]
[388808445,1759377042768,-1000.0,0.00021521,2]
[388808446,1759377042777,-1000.0,0.00021521,2]
[388808447,1759377042786,-502.4438723,0.00021521,2]
[388808448,1759377042796,-501.33730105,0.00021521,2]
[388808449,1759377042805,-502.26452921,0.00021521,2]
[388808450,1759377042814,-1000.0,0.00021521,2]
[388808451,1759377042823,-1012.48433995,0.00021521,2]
[388808452,1759377042832,-1003.15310287,0.00021521,2]
[388808453,1759377042841,-502.64413986,0.00021521,2]
[388808454,1759377042850,-1004.6469514,0.00021521,2]
[388808455,1759377042859,-1000.0,0.00021521,2]
[388808456,1759377042867,-455.59347907,0.00021521,2]
[388808457,1759377042876,-1000.0,0.00021521,2]
[388808458,1759377042885,-502.17830285,0.00021521,2]
[388808459,1759377042894,-500.99839701,0.00021521,2]
[388808460,1759377042903,-1000.0,0.00021521,2]
[388808461,1759377042912,-969.30682101,0.00021521,2]
[388808462,1759377042921,-1000.0,0.00021521,2]
[388808463,1759377042933,-463.35229626,0.00021521,2]
[388808464,1759377042943,-1005.98916651,0.00021521,2]
[388808465,1759377042952,-894.70114169,0.00021521,2]
[388808466,1759377042962,-151.0,0.00021521,2]
[388808467,1759377042970,-238.844431,0.00021521,2]
[388808468,1759377042982,-412.068089,0.00021521,2]
[388808469,1759377042991,-412.068089,0.00021521,2]
[388808470,1759377043001,-412.068089,0.00021521,2]
[388808471,1759377043012,-412.068089,0.00021521,2]
[388808472,1759377043022,-208.767533,0.00021521,2]
[388808473,1759377043031,-208.767533,0.00021521,2]
[388808474,1759377043039,-208.767533,0.00021521,2]
[388808475,1759377043048,-208.767533,0.00021521,2]
[388808476,1759377043057,-151.0,0.00021521,2]
[388808477,1759377043066,-151.0,0.00021521,2]
[388808478,1759377043075,-235.241281,0.00021521,2]
[388808479,1759377043085,-334.520223,0.00021521,2]
[388808480,1759377043094,-334.520223,0.00021521,2]
[388808481,1759377043103,-334.520223,0.00021521,2]
[388808482,1759377043112,-334.520217,0.00021521,2]
[388808483,1759377043121,-215.486704,0.00021521,2]
[388808484,1759377043130,-220.302791,0.00021521,2]
[388808485,1759377043139,-152.68921,0.00021521,2]
[388808486,1759377043148,-152.68921,0.00021521,2]
[388808487,1759377043158,-152.68921,0.00021521,2]
[388808488,1759377043167,-152.689217,0.00021521,2]
[388808489,1759377043176,-151.0,0.00021521,2]
[388808490,1759377043185,-743.73585,0.00021521,2]
[388808491,1759377043194,-743.73585,0.00021521,2]
[388808492,1759377043203,-743.73585,0.00021521,2]
[388808493,1759377043212,-743.735842,0.00021521,2]
[388808494,1759377043221,-1226.70429152,0.00021563,2]
[388808495,1759377043232,-502.19736655,0.00021573,2]
[388808496,1759377043242,-502.17408398,0.00021573,2]
[388808497,1759377043251,-201.13027473,0.00021746,2]
[388808498,1759377043260,-500.0,0.00021746,2]
[388808499,1759377043269,-200.19353915,0.00021746,2]
[388808500,1759377043278,-416.88837584,0.00021746,2]
[388808501,1759377043287,-151.0,0.00021746,2]
[388808502,1759377043296,-5159.18894493,0.00021857,2]
[388808503,1759377043305,-6000.0,0.00021914,2]
[388808504,1759377043314,-442.58,0.00021916,20]
[388808505,1759377043323,-151.0,0.00021918,2]
[388808506,1759377043332,-151.0,0.00021918,2]
[388808507,1759377043341,-153.671813,0.00021918,2]
[388808508,1759377043350,-177.632646,0.00021918,2]
[388808509,1759377043358,-151.0,0.00021918,2]
[388808510,1759377043368,-151.0,0.00021918,2]
[388808511,1759377043377,-151.0,0.00021918,2]
[388808512,1759377043386,-151.0,0.00021918,2]
[388808513,1759377043395,-151.0,0.00021918,2]
[388808514,1759377043405,-151.0,0.00021918,2]
[388808515,1759377043414,-151.0,0.00021918,2]
[388808516,1759377043423,-151.0,0.00021918,2]
[388808517,1759377043432,-151.0,0.00021918,2]
[388808518,1759377043440,-151.0,0.00021918,2]
[388808519,1759377043449,-151.0,0.00021918,2]
[388808520,1759377043458,-151.0,0.00021918,2]
[388808521,1759377043467,-151.0,0.00021918,2]
[388808522,1759377043477,-151.0,0.00021918,2]
[388808523,1759377043487,-151.0,0.00021918,2]
[388808524,1759377043496,-151.0,0.00021918,2]
[388808525,1759377043505,-151.0,0.00021918,2]
[388808526,1759377043514,-151.0,0.00021918,2]
[388808527,1759377043533,-210.649831,0.00021918,2]
[388808528,1759377043543,-357.59927722,0.00021931,2]
[388808529,1759377043552,-11335.87395288,0.0002199,2]
[388808530,1759377043562,-151.0,0.00022016,7]
[388808531,1759377043572,-412.068089,0.00022016,7]
[388808532,1759377043581,-412.068089,0.00022016,7]
[388808533,1759377043590,-412.068089,0.00022016,7]
[388808534,1759377043600,-412.068093,0.00022016,7]
[388808535,1759377043610,-208.767533,0.00022016,7]
[388808536,1759377043620,-208.767533,0.00022016,7]
[388808537,1759377043629,-208.767533,0.00022016,7]
[388808538,1759377043639,-208.76753,0.00022016,7]
[388808539,1759377043648,-151.0,0.00022016,7]
[388808540,1759377043658,-151.0,0.00022016,7]
[388808541,1759377043668,-500.0,0.0002202,2]
[388808542,1759377043677,-151.0,0.0002202,2]
[388808543,1759377043686,-160.0,0.00022022,2]
[388808544,1759377043696,-504.3031916,0.00022068,2]
[388808545,1759377043705,-502.71436461,0.00022068,2]
[388808546,1759377043714,-1596.64688912,0.00022068,2]
[388808547,1759377043723,-507.57339348,0.00022068,2]
[388808548,1759377043733,-500.0,0.00022068,2]
[388808549,1759377043742,-1500.0,0.00022068,2]
[388808550,1759377043752,-1000.0,0.00022068,2]
[388808551,1759377043766,-6545.7,0.000221,2]
[388808552,1759377043776,-207.0,0.00022137,6]
[388808553,1759377043787,-500.0,0.00022294,2]
[388808554,1759377043797,-230.70321073,0.00022294,2]
[388808555,1759377043808,-376.04,0.0002232,3]
[388808556,1759377043818,-420.0,0.00022431,2]
[388808557,1759377043828,-500.0,0.00022568,2]
[388808558,1759377043838,-260.0,0.0002257,2]
[388808559,1759377043847,-1019.1449572,0.00022616,2]
[388808560,1759377043856,-361.0,0.00022646,2]
[388808561,1759377043866,-361.0,0.00022811,2]
[388808562,1759377043876,-5159.18894493,0.00022842,2]
[388808563,1759377043885,-500.0,0.00022842,2]
[388808564,1759377043895,-10000.0,0.00022914,2]
[388808565,1759377043904,-979.0,0.00022916,2]
[388808566,1759377043914,-2157.0,0.00022916,2]
[388808567,1759377043923,-630.0,0.00022916,2]
[388808568,1759377043935,-220.265,0.00022916,2]
[388808569,1759377043945,-429.668,0.00022916,2]
[388808570,1759377043955,-361.0,0.00022956,2]
[388808571,1759377043964,-361.0,0.00022958,2]
[388808572,1759377043974,-160.0,0.00023,2]
[388808573,1759377043984,-500.0,0.00023116,2]
[388808574,1759377043993,-360.0,0.00023118,2]
[388808575,1759377044003,-361.0,0.00023177,2]
[388808576,1759377044013,-151.0,0.000232,8]
[388808577,1759377044023,-361.0,0.0002321,2]
[388808578,1759377044033,-364.28004562,0.00023279,2]
[388808579,1759377044043,-720.0,0.00023313,20]
[388808580,1759377044052,-361.0,0.00023313,2]
[388808581,1759377044062,-361.0,0.00023381,2]
[388808582,1759377044071,-500.0,0.0002339,2]
[388808583,1759377044080,-151.0,0.000235,6]
[388808584,1759377044091,-600.0,0.00023519,2]
[388808585,1759377044100,-159.47398934,0.00023589,2]
[388808586,1759377044111,-361.0,0.00023601,2]
[388808587,1759377044120,-500.66638074,0.0002362,2]
[388808588,1759377044130,-500.0,0.00023664,2]
[388808589,1759377044139,-460.0,0.00023666,2]
[388808590,1759377044149,-361.0,0.00023763,2]
[388808591,1759377044159,-600.0,0.00023764,2]
[388808592,1759377044168,-151.0,0.000238,9]
[388808593,1759377044178,-5159.18894493,0.00023826,2]
[388808594,1759377044187,-159.47398934,0.0002389,2]
[388808595,1759377044196,-151.0,0.000239,7]
[388808596,1759377044206,-151.0,0.000239,7]
[388808597,1759377044215,-151.0,0.000239,7]
[388808598,1759377044225,-151.0,0.000239,7]
[388808599,1759377044236,-500.0,0.00023938,2]
[388808600,1759377044246,-2686.5669382,0.00023968,2]
[388808601,1759377044256,-3054.1994828,0.00023968,2]
[388808602,1759377044266,-156.075261,0.00023968,7]
[388808603,1759377044276,-151.0,0.00023968,7]
[388808604,1759377044286,-153.639637,0.00023968,7]
[388808605,1759377044295,-151.0,0.00023968,7]
[388808606,1759377044306,-154.655443,0.00023968,7]
[388808607,1759377044316,-151.0,0.00023968,7]
[388808608,1759377044328,-151.0,0.00023968,7]
[388808609,1759377044337,-2686.5669382,0.00023968,2]
[388808610,1759377044346,-875.0433533,0.00023968,2]
[388808611,1759377044356,-500.77194799,0.00023973,2]
[388808612,1759377044365,-500.8170623,0.00023973,2]
[388808613,1759377044375,-504.58160478,0.00023973,2]
[388808614,1759377044384,-500.0,0.00023973,2]
[388808615,1759377044393,-500.0,0.00023973,2]
[388808616,1759377044403,-501.93965128,0.00023973,2]
[388808617,1759377044413,-500.0,0.00023973,2]
[388808618,1759377044422,-500.0,0.00023973,2]
[388808619,1759377044432,-500.0,0.00023973,2]
[388808620,1759377044441,-500.0,0.00023973,2]
[388808621,1759377044451,-361.59439686,0.00023973,2]
[388808622,1759377044461,-151.0,0.0002399,7]
[388808623,1759377044471,-151.0,0.0002399,7]
[388808624,1759377044480,-200.0,0.00023999,2]
[388808625,1759377044489,-200.0,0.00023999,2]
[388808626,1759377044499,-161.49693542,0.00023999,2]
[388808627,1759377044508,-242696.84325617,0.00024,26]
[388808636,1759377046051,-250.0,0.0002096,2]
[388808637,1759377046060,-250.0,0.0002096,2]
[388808638,1759377046070,-250.0,0.0002096,2]
[388808639,1759377046081,-250.0,0.0002096,2]
[388808640,1759377046090,-250.0,0.0002096,2]
[388808641,1759377046100,-151.0,0.00020961,2]
[388808642,1759377046110,-151.0,0.00020961,2]
[388808643,1759377046119,-151.0,0.00020961,2]
[388808644,1759377046128,-151.0,0.00020973,2]
[388808645,1759377046140,-151.0,0.00020973,2]
[388808646,1759377046155,-151.0,0.00020973,2]
[388808647,1759377046165,-151.0,0.00020973,2]
[388808648,1759377046177,-249.4541,0.00020973,2]
[388808649,1759377046188,-151.0,0.00020973,2]
[388808650,1759377046197,-151.0,0.00020973,2]
[388808651,1759377046206,-151.0,0.00020973,2]
[388808652,1759377046216,-151.0,0.00020973,2]
[388808653,1759377046226,-151.0,0.00021472,2]
[388808654,1759377046235,-151.0,0.00021472,2]
[388808655,1759377046244,-73516.25124638,0.00024,26]
[388808656,1759377046253,-151.0,0.00024,7]
[388808657,1759377046262,-151.0,0.00024,7]
[388808658,1759377046271,-164.114517,0.00024,26]
[388808659,1759377046279,-361.0,0.00024007,2]